{"text_format":"3","workbook":"xlsx","n_sheets":4,"sheets":["Tổng quan về ngân sách","Tóm tắt Ngân sách","Chi phí Hàng tháng","Dữ liệu bổ sung"],"not_rendered":{"charts":1,"images":4,"defined_names":7,"pivot_tables":2},"read":"whole","date_system":"1900"}

{"sheet":"Tổng quan về ngân sách","index":0,"n_rows":12,"n_cols":8,"rows_kept":12,"merged":[[1,1,1,2],[2,1,2,2],[3,1,3,2],[4,1,4,2]]}
[{"$nulls":7}," "]
[null,"Số dư"]
[null,"Số dư theo kế hoạch",null,{"$f":"Projected_Income-Projected_Expenses","v":{"v":1585,"d":"1,585 ₫"}},null,"Số dư theo kế hoạch trừ chi phí"]
[null,"Số dư thực tế ",null,{"$f":"Actual_Income-Actual_Expenses","v":{"v":1740,"d":"1,740 ₫"}},null,"Số dư thực tế trừ chi phí"]
[null,"Chênh lệch",null,{"$f":"D4-D3","v":{"v":155,"d":"155 ₫"}},null,"Số dư thực tế trừ số dư theo kế hoạch"]
[null,"Thu nhập",{"$nulls":3},"Chi phí"]
[null,null,"Theo kế hoạch","Thực tế",null,"Theo kế hoạch","Thực tế"]
[null,"Thu nhập 1",{"v":6000,"d":"6,000 ₫"},{"v":5800,"d":"5,800 ₫"},null,{"$f":"SUM(Monthly_Expenses_Table[Chi phí theo kế hoạch])","v":{"v":7915,"d":"7,915 ₫"}},{"$f":"SUM(Monthly_Expenses_Table[Chi phí thực tế])","v":{"v":7860,"d":"7,860 ₫"}}]
[null,"Thu nhập 2",{"v":1000,"d":"1,000 ₫"},{"v":2300,"d":"2,300 ₫"}]
[null,"Thu nhập thêm",{"v":2500,"d":"2,500 ₫"},{"v":1500,"d":"1,500 ₫"}]
[null,"Tổng thu nhập",{"$f":"SUM(C8:C10)","v":{"v":9500,"d":"9,500 ₫"}},{"$f":"SUM(D8:D10)","v":{"v":9600,"d":"9,600 ₫"}}]
[null,"Phân phối chi phí thực tế"]

{"sheet":"Tóm tắt Ngân sách","index":1,"n_rows":41,"n_cols":7,"rows_kept":41}
[null,"Tổng kết ngân sách",{"$nulls":4}," "]
[]
[null,"Danh mục","Chi phí theo kế hoạch ","Chi phí thực tế ","Chênh lệch "]
[null,"Con cái",{"v":140,"d":"140 ₫"},{"v":140,"d":"140 ₫"},{"v":0,"d":"0 ₫"}]
[null,"Dụng cụ học tập",null,null,{"v":0,"d":"0 ₫"}]
[null,"Hoạt động ngoại khoá",{"v":40,"d":"40 ₫"},{"v":40,"d":"40 ₫"},{"v":0,"d":"0 ₫"}]
[null,"Học phí",{"v":100,"d":"100 ₫"},{"v":100,"d":"100 ₫"},{"v":0,"d":"0 ₫"}]
[null,"Y tế",null,null,{"v":0,"d":"0 ₫"}]
[]
[null,"Giải trí",{"v":400,"d":"400 ₫"},{"v":358,"d":"358 ₫"},{"v":42,"d":"42 ₫"}]
[null,"Buổi hòa nhạc",{"v":50,"d":"50 ₫"},{"v":40,"d":"40 ₫"},{"v":10,"d":"10 ₫"}]
[null,"Nhà hát",{"v":200,"d":"200 ₫"},{"v":150,"d":"150 ₫"},{"v":50,"d":"50 ₫"}]
[null,"Nhạc (CD, nhạc tải xuống, v.v.)",{"v":50,"d":"50 ₫"},{"v":30,"d":"30 ₫"},{"v":20,"d":"20 ₫"}]
[null,"Phim",{"v":50,"d":"50 ₫"},{"v":28,"d":"28 ₫"},{"v":22,"d":"22 ₫"}]
[null,"Sự kiện thể thao",{"v":0,"d":"0 ₫"},{"v":40,"d":"40 ₫"},{"v":-40,"d":"-40 ₫"}]
[null,"Video/DVD (Mua)",{"v":20,"d":"20 ₫"},{"v":50,"d":"50 ₫"},{"v":-30,"d":"-30 ₫"}]
[null,"Video/DVD (Thuê)",{"v":30,"d":"30 ₫"},{"v":20,"d":"20 ₫"},{"v":10,"d":"10 ₫"}]
[]
[null,"Bảo hiểm",{"v":900,"d":"900 ₫"},{"v":900,"d":"900 ₫"},{"v":0,"d":"0 ₫"}]
[]
[null,"Chăm sóc cá nhân",{"v":150,"d":"150 ₫"},{"v":140,"d":"140 ₫"},{"v":10,"d":"10 ₫"}]
[]
[null,"Đi lại",{"v":1425,"d":"1,425 ₫"},{"v":1375,"d":"1,375 ₫"},{"v":50,"d":"50 ₫"}]
[]
[null,"Đồ ăn",{"v":1100,"d":"1,100 ₫"},{"v":1320,"d":"1,320 ₫"},{"v":-220,"d":"-220 ₫"}]
[]
[null,"Khoản vay",{"v":200,"d":"200 ₫"},{"v":200,"d":"200 ₫"},{"v":0,"d":"0 ₫"}]
[]
[null,"Nhà ở",{"v":2830,"d":"2,830 ₫"},{"v":2702,"d":"2,702 ₫"},{"v":-72,"d":"-72 ₫"}]
[]
[null,"Quà tặng và khoản từ thiện",{"v":100,"d":"100 ₫"},{"v":125,"d":"125 ₫"},{"v":-25,"d":"-25 ₫"}]
[]
[null,"Thuế",{"v":300,"d":"300 ₫"},{"v":300,"d":"300 ₫"},{"v":0,"d":"0 ₫"}]
[]
[null,"Vật nuôi",{"v":170,"d":"170 ₫"},{"v":100,"d":"100 ₫"},{"v":70,"d":"70 ₫"}]
[]
[null,"Tiết kiệm",{"v":200,"d":"200 ₫"},{"v":200,"d":"200 ₫"},{"v":0,"d":"0 ₫"}]
[null,"Tài khoản đầu tư",{"v":200,"d":"200 ₫"},{"v":200,"d":"200 ₫"},{"v":0,"d":"0 ₫"}]
[null,"Tài khoản hưu trí",null,null,{"v":0,"d":"0 ₫"}]
[]
[null,"Tổng Cuối",{"v":7915,"d":"7,915 ₫"},{"v":7860,"d":"7,860 ₫"},{"v":-145,"d":"-145 ₫"}]

{"sheet":"Chi phí Hàng tháng","index":2,"n_rows":61,"n_cols":8,"rows_kept":61}
[{"$nulls":7}," "]
[null,"Mô tả","Danh mục","Chi phí theo kế hoạch","Chi phí thực tế","Chênh lệch","Tổng quan về chi phí thực tế"]
[null,"Hoạt động ngoại khoá","Con cái",{"v":40,"d":"40 ₫"},{"v":40,"d":"40 ₫"},{"$f":"IF(OR(Monthly_Expenses_Table[[#This Row],[Chi phí theo kế hoạch]]=\"\",Monthly_Expenses_Table[[#This Row],[Chi phí thực tế]]=\"\"),\"\",Monthly_Expenses_Table[[#This Row],[Chi phí theo kế hoạch]]-Monthly_Expenses_Table[[#This Row],[Chi phí thực tế]])","v":{"v":0,"d":"0 ₫"}},{"$f":"Monthly_Expenses_Table[[#This Row],[Chi phí thực tế]]","v":40}]
[null,"Y tế","Con cái",null,null,{"$f":"IF(OR(Monthly_Expenses_Table[[#This Row],[Chi phí theo kế hoạch]]=\"\",Monthly_Expenses_Table[[#This Row],[Chi phí thực tế]]=\"\"),\"\",Monthly_Expenses_Table[[#This Row],[Chi phí theo kế hoạch]]-Monthly_Expenses_Table[[#This Row],[Chi phí thực tế]])","v":""},{"$f":"Monthly_Expenses_Table[[#This Row],[Chi phí thực tế]]","v":0}]
[null,"Dụng cụ học tập","Con cái",null,null,{"$f":"IF(OR(Monthly_Expenses_Table[[#This Row],[Chi phí theo kế hoạch]]=\"\",Monthly_Expenses_Table[[#This Row],[Chi phí thực tế]]=\"\"),\"\",Monthly_Expenses_Table[[#This Row],[Chi phí theo kế hoạch]]-Monthly_Expenses_Table[[#This Row],[Chi phí thực tế]])","v":""},{"$f":"Monthly_Expenses_Table[[#This Row],[Chi phí thực tế]]","v":0}]
[null,"Học phí","Con cái",{"v":100,"d":"100 ₫"},{"v":100,"d":"100 ₫"},{"$f":"IF(OR(Monthly_Expenses_Table[[#This Row],[Chi phí theo kế hoạch]]=\"\",Monthly_Expenses_Table[[#This Row],[Chi phí thực tế]]=\"\"),\"\",Monthly_Expenses_Table[[#This Row],[Chi phí theo kế hoạch]]-Monthly_Expenses_Table[[#This Row],[Chi phí thực tế]])","v":{"v":0,"d":"0 ₫"}},{"$f":"Monthly_Expenses_Table[[#This Row],[Chi phí thực tế]]","v":100}]
[null,"Buổi hòa nhạc","Giải trí",{"v":50,"d":"50 ₫"},{"v":40,"d":"40 ₫"},{"$f":"IF(OR(Monthly_Expenses_Table[[#This Row],[Chi phí theo kế hoạch]]=\"\",Monthly_Expenses_Table[[#This Row],[Chi phí thực tế]]=\"\"),\"\",Monthly_Expenses_Table[[#This Row],[Chi phí theo kế hoạch]]-Monthly_Expenses_Table[[#This Row],[Chi phí thực tế]])","v":{"v":10,"d":"10 ₫"}},{"$f":"Monthly_Expenses_Table[[#This Row],[Chi phí thực tế]]","v":40}]
[null,"Nhà hát","Giải trí",{"v":200,"d":"200 ₫"},{"v":150,"d":"150 ₫"},{"$f":"IF(OR(Monthly_Expenses_Table[[#This Row],[Chi phí theo kế hoạch]]=\"\",Monthly_Expenses_Table[[#This Row],[Chi phí thực tế]]=\"\"),\"\",Monthly_Expenses_Table[[#This Row],[Chi phí theo kế hoạch]]-Monthly_Expenses_Table[[#This Row],[Chi phí thực tế]])","v":{"v":50,"d":"50 ₫"}},{"$f":"Monthly_Expenses_Table[[#This Row],[Chi phí thực tế]]","v":{"v":150,"d":"$150"}}]
[null,"Phim","Giải trí",{"v":50,"d":"50 ₫"},{"v":28,"d":"28 ₫"},{"$f":"IF(OR(Monthly_Expenses_Table[[#This Row],[Chi phí theo kế hoạch]]=\"\",Monthly_Expenses_Table[[#This Row],[Chi phí thực tế]]=\"\"),\"\",Monthly_Expenses_Table[[#This Row],[Chi phí theo kế hoạch]]-Monthly_Expenses_Table[[#This Row],[Chi phí thực tế]])","v":{"v":22,"d":"22 ₫"}},{"$f":"Monthly_Expenses_Table[[#This Row],[Chi phí thực tế]]","v":28}]
[null,"Nhạc (CD, nhạc tải xuống, v.v.)","Giải trí",{"v":50,"d":"50 ₫"},{"v":30,"d":"30 ₫"},{"$f":"IF(OR(Monthly_Expenses_Table[[#This Row],[Chi phí theo kế hoạch]]=\"\",Monthly_Expenses_Table[[#This Row],[Chi phí thực tế]]=\"\"),\"\",Monthly_Expenses_Table[[#This Row],[Chi phí theo kế hoạch]]-Monthly_Expenses_Table[[#This Row],[Chi phí thực tế]])","v":{"v":20,"d":"20 ₫"}},{"$f":"Monthly_Expenses_Table[[#This Row],[Chi phí thực tế]]","v":30}]
[null,"Sự kiện thể thao","Giải trí",{"v":0,"d":"0 ₫"},{"v":40,"d":"40 ₫"},{"$f":"IF(OR(Monthly_Expenses_Table[[#This Row],[Chi phí theo kế hoạch]]=\"\",Monthly_Expenses_Table[[#This Row],[Chi phí thực tế]]=\"\"),\"\",Monthly_Expenses_Table[[#This Row],[Chi phí theo kế hoạch]]-Monthly_Expenses_Table[[#This Row],[Chi phí thực tế]])","v":{"v":-40,"d":"-40 ₫"}},{"$f":"Monthly_Expenses_Table[[#This Row],[Chi phí thực tế]]","v":40}]
[null,"Video/DVD (Mua)","Giải trí",{"v":20,"d":"20 ₫"},{"v":50,"d":"50 ₫"},{"$f":"IF(OR(Monthly_Expenses_Table[[#This Row],[Chi phí theo kế hoạch]]=\"\",Monthly_Expenses_Table[[#This Row],[Chi phí thực tế]]=\"\"),\"\",Monthly_Expenses_Table[[#This Row],[Chi phí theo kế hoạch]]-Monthly_Expenses_Table[[#This Row],[Chi phí thực tế]])","v":{"v":-30,"d":"-30 ₫"}},{"$f":"Monthly_Expenses_Table[[#This Row],[Chi phí thực tế]]","v":50}]
[null,"Video/DVD (Thuê)","Giải trí",{"v":30,"d":"30 ₫"},{"v":20,"d":"20 ₫"},{"$f":"IF(OR(Monthly_Expenses_Table[[#This Row],[Chi phí theo kế hoạch]]=\"\",Monthly_Expenses_Table[[#This Row],[Chi phí thực tế]]=\"\"),\"\",Monthly_Expenses_Table[[#This Row],[Chi phí theo kế hoạch]]-Monthly_Expenses_Table[[#This Row],[Chi phí thực tế]])","v":{"v":10,"d":"10 ₫"}},{"$f":"Monthly_Expenses_Table[[#This Row],[Chi phí thực tế]]","v":20}]
[null,"Ăn ngoài","Đồ ăn",{"v":1000,"d":"1,000 ₫"},{"v":1200,"d":"1,200 ₫"},{"$f":"IF(OR(Monthly_Expenses_Table[[#This Row],[Chi phí theo kế hoạch]]=\"\",Monthly_Expenses_Table[[#This Row],[Chi phí thực tế]]=\"\"),\"\",Monthly_Expenses_Table[[#This Row],[Chi phí theo kế hoạch]]-Monthly_Expenses_Table[[#This Row],[Chi phí thực tế]])","v":{"v":-200,"d":"-200 ₫"}},{"$f":"Monthly_Expenses_Table[[#This Row],[Chi phí thực tế]]","v":1200}]
[null,"Tạp phẩm","Đồ ăn",{"v":100,"d":"100 ₫"},{"v":120,"d":"120 ₫"},{"$f":"IF(OR(Monthly_Expenses_Table[[#This Row],[Chi phí theo kế hoạch]]=\"\",Monthly_Expenses_Table[[#This Row],[Chi phí thực tế]]=\"\"),\"\",Monthly_Expenses_Table[[#This Row],[Chi phí theo kế hoạch]]-Monthly_Expenses_Table[[#This Row],[Chi phí thực tế]])","v":{"v":-20,"d":"-20 ₫"}},{"$f":"Monthly_Expenses_Table[[#This Row],[Chi phí thực tế]]","v":120}]
[null,"Khoản từ thiện 1","Quà tặng và khoản từ thiện",{"v":75,"d":"75 ₫"},{"v":100,"d":"100 ₫"},{"$f":"IF(OR(Monthly_Expenses_Table[[#This Row],[Chi phí theo kế hoạch]]=\"\",Monthly_Expenses_Table[[#This Row],[Chi phí thực tế]]=\"\"),\"\",Monthly_Expenses_Table[[#This Row],[Chi phí theo kế hoạch]]-Monthly_Expenses_Table[[#This Row],[Chi phí thực tế]])","v":{"v":-25,"d":"-25 ₫"}},{"$f":"Monthly_Expenses_Table[[#This Row],[Chi phí thực tế]]","v":100}]
[null,"Khoản từ thiện 2","Quà tặng và khoản từ thiện",{"v":25,"d":"25 ₫"},{"v":25,"d":"25 ₫"},{"$f":"IF(OR(Monthly_Expenses_Table[[#This Row],[Chi phí theo kế hoạch]]=\"\",Monthly_Expenses_Table[[#This Row],[Chi phí thực tế]]=\"\"),\"\",Monthly_Expenses_Table[[#This Row],[Chi phí theo kế hoạch]]-Monthly_Expenses_Table[[#This Row],[Chi phí thực tế]])","v":{"v":0,"d":"0 ₫"}},{"$f":"Monthly_Expenses_Table[[#This Row],[Chi phí thực tế]]","v":25}]
[null,"Quà tặng 1","Quà tặng và khoản từ thiện",null,null,{"$f":"IF(OR(Monthly_Expenses_Table[[#This Row],[Chi phí theo kế hoạch]]=\"\",Monthly_Expenses_Table[[#This Row],[Chi phí thực tế]]=\"\"),\"\",Monthly_Expenses_Table[[#This Row],[Chi phí theo kế hoạch]]-Monthly_Expenses_Table[[#This Row],[Chi phí thực tế]])","v":""},{"$f":"Monthly_Expenses_Table[[#This Row],[Chi phí thực tế]]","v":0}]
[null,"Quà tặng 2","Quà tặng và khoản từ thiện",null,null,{"$f":"IF(OR(Monthly_Expenses_Table[[#This Row],[Chi phí theo kế hoạch]]=\"\",Monthly_Expenses_Table[[#This Row],[Chi phí thực tế]]=\"\"),\"\",Monthly_Expenses_Table[[#This Row],[Chi phí theo kế hoạch]]-Monthly_Expenses_Table[[#This Row],[Chi phí thực tế]])","v":""},{"$f":"Monthly_Expenses_Table[[#This Row],[Chi phí thực tế]]","v":0}]
[null,"Cáp/Vệ tinh","Nhà ở",{"v":100,"d":"100 ₫"},{"v":100,"d":"100 ₫"},{"$f":"IF(OR(Monthly_Expenses_Table[[#This Row],[Chi phí theo kế hoạch]]=\"\",Monthly_Expenses_Table[[#This Row],[Chi phí thực tế]]=\"\"),\"\",Monthly_Expenses_Table[[#This Row],[Chi phí theo kế hoạch]]-Monthly_Expenses_Table[[#This Row],[Chi phí thực tế]])","v":{"v":0,"d":"0 ₫"}},{"$f":"Monthly_Expenses_Table[[#This Row],[Chi phí thực tế]]","v":100}]
[null,"Điện","Nhà ở",{"v":45,"d":"45 ₫"},{"v":50,"d":"50 ₫"},{"$f":"IF(OR(Monthly_Expenses_Table[[#This Row],[Chi phí theo kế hoạch]]=\"\",Monthly_Expenses_Table[[#This Row],[Chi phí thực tế]]=\"\"),\"\",Monthly_Expenses_Table[[#This Row],[Chi phí theo kế hoạch]]-Monthly_Expenses_Table[[#This Row],[Chi phí thực tế]])","v":{"v":-5,"d":"-5 ₫"}},{"$f":"Monthly_Expenses_Table[[#This Row],[Chi phí thực tế]]","v":50}]
[null,"Khí đốt","Nhà ở",{"v":300,"d":"300 ₫"},{"v":400,"d":"400 ₫"},{"$f":"IF(OR(Monthly_Expenses_Table[[#This Row],[Chi phí theo kế hoạch]]=\"\",Monthly_Expenses_Table[[#This Row],[Chi phí thực tế]]=\"\"),\"\",Monthly_Expenses_Table[[#This Row],[Chi phí theo kế hoạch]]-Monthly_Expenses_Table[[#This Row],[Chi phí thực tế]])","v":{"v":-100,"d":"-100 ₫"}},{"$f":"Monthly_Expenses_Table[[#This Row],[Chi phí thực tế]]","v":400}]
[null,"Dịch vụ dọn dẹp nhà cửa","Nhà ở",{"v":200,"d":"200 ₫"},null,{"$f":"IF(OR(Monthly_Expenses_Table[[#This Row],[Chi phí theo kế hoạch]]=\"\",Monthly_Expenses_Table[[#This Row],[Chi phí thực tế]]=\"\"),\"\",Monthly_Expenses_Table[[#This Row],[Chi phí theo kế hoạch]]-Monthly_Expenses_Table[[#This Row],[Chi phí thực tế]])","v":""},{"$f":"Monthly_Expenses_Table[[#This Row],[Chi phí thực tế]]","v":0}]
[null,"Bảo trì","Nhà ở",{"v":200,"d":"200 ₫"},{"v":150,"d":"150 ₫"},{"$f":"IF(OR(Monthly_Expenses_Table[[#This Row],[Chi phí theo kế hoạch]]=\"\",Monthly_Expenses_Table[[#This Row],[Chi phí thực tế]]=\"\"),\"\",Monthly_Expenses_Table[[#This Row],[Chi phí theo kế hoạch]]-Monthly_Expenses_Table[[#This Row],[Chi phí thực tế]])","v":{"v":50,"d":"50 ₫"}},{"$f":"Monthly_Expenses_Table[[#This Row],[Chi phí thực tế]]","v":150}]
[null,"Tiền thế chấp hoặc tiền thuê","Nhà ở",{"v":1700,"d":"1,700 ₫"},{"v":1700,"d":"1,700 ₫"},{"$f":"IF(OR(Monthly_Expenses_Table[[#This Row],[Chi phí theo kế hoạch]]=\"\",Monthly_Expenses_Table[[#This Row],[Chi phí thực tế]]=\"\"),\"\",Monthly_Expenses_Table[[#This Row],[Chi phí theo kế hoạch]]-Monthly_Expenses_Table[[#This Row],[Chi phí thực tế]])","v":{"v":0,"d":"0 ₫"}},{"$f":"Monthly_Expenses_Table[[#This Row],[Chi phí thực tế]]","v":1700}]
[null,"Khí đốt tự nhiên/dầu","Nhà ở",null,null,{"$f":"IF(OR(Monthly_Expenses_Table[[#This Row],[Chi phí theo kế hoạch]]=\"\",Monthly_Expenses_Table[[#This Row],[Chi phí thực tế]]=\"\"),\"\",Monthly_Expenses_Table[[#This Row],[Chi phí theo kế hoạch]]-Monthly_Expenses_Table[[#This Row],[Chi phí thực tế]])","v":""},{"$f":"Monthly_Expenses_Table[[#This Row],[Chi phí thực tế]]","v":0}]
[null,"Dịch vụ trực tuyến/Internet","Nhà ở",{"v":100,"d":"100 ₫"},{"v":100,"d":"100 ₫"},{"$f":"IF(OR(Monthly_Expenses_Table[[#This Row],[Chi phí theo kế hoạch]]=\"\",Monthly_Expenses_Table[[#This Row],[Chi phí thực tế]]=\"\"),\"\",Monthly_Expenses_Table[[#This Row],[Chi phí theo kế hoạch]]-Monthly_Expenses_Table[[#This Row],[Chi phí thực tế]])","v":{"v":0,"d":"0 ₫"}},{"$f":"Monthly_Expenses_Table[[#This Row],[Chi phí thực tế]]","v":100}]
[null,"Điện thoại (Di động)","Nhà ở",{"v":60,"d":"60 ₫"},{"v":60,"d":"60 ₫"},{"$f":"IF(OR(Monthly_Expenses_Table[[#This Row],[Chi phí theo kế hoạch]]=\"\",Monthly_Expenses_Table[[#This Row],[Chi phí thực tế]]=\"\"),\"\",Monthly_Expenses_Table[[#This Row],[Chi phí theo kế hoạch]]-Monthly_Expenses_Table[[#This Row],[Chi phí thực tế]])","v":{"v":0,"d":"0 ₫"}},{"$f":"Monthly_Expenses_Table[[#This Row],[Chi phí thực tế]]","v":60}]
[null,"Điện thoại (Nhà)","Nhà ở",{"v":35,"d":"35 ₫"},{"v":39,"d":"39 ₫"},{"$f":"IF(OR(Monthly_Expenses_Table[[#This Row],[Chi phí theo kế hoạch]]=\"\",Monthly_Expenses_Table[[#This Row],[Chi phí thực tế]]=\"\"),\"\",Monthly_Expenses_Table[[#This Row],[Chi phí theo kế hoạch]]-Monthly_Expenses_Table[[#This Row],[Chi phí thực tế]])","v":{"v":-4,"d":"-4 ₫"}},{"$f":"Monthly_Expenses_Table[[#This Row],[Chi phí thực tế]]","v":39}]
[null,"Nhu yếu phẩm","Nhà ở",{"v":40,"d":"40 ₫"},{"v":55,"d":"55 ₫"},{"$f":"IF(OR(Monthly_Expenses_Table[[#This Row],[Chi phí theo kế hoạch]]=\"\",Monthly_Expenses_Table[[#This Row],[Chi phí thực tế]]=\"\"),\"\",Monthly_Expenses_Table[[#This Row],[Chi phí theo kế hoạch]]-Monthly_Expenses_Table[[#This Row],[Chi phí thực tế]])","v":{"v":-15,"d":"-15 ₫"}},{"$f":"Monthly_Expenses_Table[[#This Row],[Chi phí thực tế]]","v":55}]
[null,"Loại bỏ rác thải và tái chế","Nhà ở",{"v":25,"d":"25 ₫"},{"v":22,"d":"22 ₫"},{"$f":"IF(OR(Monthly_Expenses_Table[[#This Row],[Chi phí theo kế hoạch]]=\"\",Monthly_Expenses_Table[[#This Row],[Chi phí thực tế]]=\"\"),\"\",Monthly_Expenses_Table[[#This Row],[Chi phí theo kế hoạch]]-Monthly_Expenses_Table[[#This Row],[Chi phí thực tế]])","v":{"v":3,"d":"3 ₫"}},{"$f":"Monthly_Expenses_Table[[#This Row],[Chi phí thực tế]]","v":22}]
[null,"Nước và nước thải","Nhà ở",{"v":25,"d":"25 ₫"},{"v":26,"d":"26 ₫"},{"$f":"IF(OR(Monthly_Expenses_Table[[#This Row],[Chi phí theo kế hoạch]]=\"\",Monthly_Expenses_Table[[#This Row],[Chi phí thực tế]]=\"\"),\"\",Monthly_Expenses_Table[[#This Row],[Chi phí theo kế hoạch]]-Monthly_Expenses_Table[[#This Row],[Chi phí thực tế]])","v":{"v":-1,"d":"-1 ₫"}},{"$f":"Monthly_Expenses_Table[[#This Row],[Chi phí thực tế]]","v":26}]
[null,"Sức khỏe","Bảo hiểm",{"v":400,"d":"400 ₫"},{"v":400,"d":"400 ₫"},{"$f":"IF(OR(Monthly_Expenses_Table[[#This Row],[Chi phí theo kế hoạch]]=\"\",Monthly_Expenses_Table[[#This Row],[Chi phí thực tế]]=\"\"),\"\",Monthly_Expenses_Table[[#This Row],[Chi phí theo kế hoạch]]-Monthly_Expenses_Table[[#This Row],[Chi phí thực tế]])","v":{"v":0,"d":"0 ₫"}},{"$f":"Monthly_Expenses_Table[[#This Row],[Chi phí thực tế]]","v":400}]
[null,"Trang chủ","Bảo hiểm",{"v":400,"d":"400 ₫"},{"v":400,"d":"400 ₫"},{"$f":"IF(OR(Monthly_Expenses_Table[[#This Row],[Chi phí theo kế hoạch]]=\"\",Monthly_Expenses_Table[[#This Row],[Chi phí thực tế]]=\"\"),\"\",Monthly_Expenses_Table[[#This Row],[Chi phí theo kế hoạch]]-Monthly_Expenses_Table[[#This Row],[Chi phí thực tế]])","v":{"v":0,"d":"0 ₫"}},{"$f":"Monthly_Expenses_Table[[#This Row],[Chi phí thực tế]]","v":400}]
[null,"Đời sống","Bảo hiểm",{"v":100,"d":"100 ₫"},{"v":100,"d":"100 ₫"},{"$f":"IF(OR(Monthly_Expenses_Table[[#This Row],[Chi phí theo kế hoạch]]=\"\",Monthly_Expenses_Table[[#This Row],[Chi phí thực tế]]=\"\"),\"\",Monthly_Expenses_Table[[#This Row],[Chi phí theo kế hoạch]]-Monthly_Expenses_Table[[#This Row],[Chi phí thực tế]])","v":{"v":0,"d":"0 ₫"}},{"$f":"Monthly_Expenses_Table[[#This Row],[Chi phí thực tế]]","v":100}]
[null,"Thẻ tín dụng 1","Khoản vay",{"v":200,"d":"200 ₫"},{"v":200,"d":"200 ₫"},{"$f":"IF(OR(Monthly_Expenses_Table[[#This Row],[Chi phí theo kế hoạch]]=\"\",Monthly_Expenses_Table[[#This Row],[Chi phí thực tế]]=\"\"),\"\",Monthly_Expenses_Table[[#This Row],[Chi phí theo kế hoạch]]-Monthly_Expenses_Table[[#This Row],[Chi phí thực tế]])","v":{"v":0,"d":"0 ₫"}},{"$f":"Monthly_Expenses_Table[[#This Row],[Chi phí thực tế]]","v":200}]
[null,"Thẻ tín dụng 2","Khoản vay",null,null,{"$f":"IF(OR(Monthly_Expenses_Table[[#This Row],[Chi phí theo kế hoạch]]=\"\",Monthly_Expenses_Table[[#This Row],[Chi phí thực tế]]=\"\"),\"\",Monthly_Expenses_Table[[#This Row],[Chi phí theo kế hoạch]]-Monthly_Expenses_Table[[#This Row],[Chi phí thực tế]])","v":""},{"$f":"Monthly_Expenses_Table[[#This Row],[Chi phí thực tế]]","v":0}]
[null,"Thẻ tín dụng 3","Khoản vay",null,null,{"$f":"IF(OR(Monthly_Expenses_Table[[#This Row],[Chi phí theo kế hoạch]]=\"\",Monthly_Expenses_Table[[#This Row],[Chi phí thực tế]]=\"\"),\"\",Monthly_Expenses_Table[[#This Row],[Chi phí theo kế hoạch]]-Monthly_Expenses_Table[[#This Row],[Chi phí thực tế]])","v":""},{"$f":"Monthly_Expenses_Table[[#This Row],[Chi phí thực tế]]","v":0}]
[null,"Cá nhân","Khoản vay",null,null,{"$f":"IF(OR(Monthly_Expenses_Table[[#This Row],[Chi phí theo kế hoạch]]=\"\",Monthly_Expenses_Table[[#This Row],[Chi phí thực tế]]=\"\"),\"\",Monthly_Expenses_Table[[#This Row],[Chi phí theo kế hoạch]]-Monthly_Expenses_Table[[#This Row],[Chi phí thực tế]])","v":""},{"$f":"Monthly_Expenses_Table[[#This Row],[Chi phí thực tế]]","v":0}]
[null,"Học viên","Khoản vay",null,null,{"$f":"IF(OR(Monthly_Expenses_Table[[#This Row],[Chi phí theo kế hoạch]]=\"\",Monthly_Expenses_Table[[#This Row],[Chi phí thực tế]]=\"\"),\"\",Monthly_Expenses_Table[[#This Row],[Chi phí theo kế hoạch]]-Monthly_Expenses_Table[[#This Row],[Chi phí thực tế]])","v":""},{"$f":"Monthly_Expenses_Table[[#This Row],[Chi phí thực tế]]","v":0}]
[null,"Trang phục","Chăm sóc cá nhân",{"v":150,"d":"150 ₫"},{"v":140,"d":"140 ₫"},{"$f":"IF(OR(Monthly_Expenses_Table[[#This Row],[Chi phí theo kế hoạch]]=\"\",Monthly_Expenses_Table[[#This Row],[Chi phí thực tế]]=\"\"),\"\",Monthly_Expenses_Table[[#This Row],[Chi phí theo kế hoạch]]-Monthly_Expenses_Table[[#This Row],[Chi phí thực tế]])","v":{"v":10,"d":"10 ₫"}},{"$f":"Monthly_Expenses_Table[[#This Row],[Chi phí thực tế]]","v":140}]
[null,"Giặt khô","Chăm sóc cá nhân",null,null,{"$f":"IF(OR(Monthly_Expenses_Table[[#This Row],[Chi phí theo kế hoạch]]=\"\",Monthly_Expenses_Table[[#This Row],[Chi phí thực tế]]=\"\"),\"\",Monthly_Expenses_Table[[#This Row],[Chi phí theo kế hoạch]]-Monthly_Expenses_Table[[#This Row],[Chi phí thực tế]])","v":""},{"$f":"Monthly_Expenses_Table[[#This Row],[Chi phí thực tế]]","v":0}]
[null,"Tóc/Móng","Chăm sóc cá nhân",null,null,{"$f":"IF(OR(Monthly_Expenses_Table[[#This Row],[Chi phí theo kế hoạch]]=\"\",Monthly_Expenses_Table[[#This Row],[Chi phí thực tế]]=\"\"),\"\",Monthly_Expenses_Table[[#This Row],[Chi phí theo kế hoạch]]-Monthly_Expenses_Table[[#This Row],[Chi phí thực tế]])","v":""},{"$f":"Monthly_Expenses_Table[[#This Row],[Chi phí thực tế]]","v":0}]
[null,"Phòng tập","Chăm sóc cá nhân",null,null,{"$f":"IF(OR(Monthly_Expenses_Table[[#This Row],[Chi phí theo kế hoạch]]=\"\",Monthly_Expenses_Table[[#This Row],[Chi phí thực tế]]=\"\"),\"\",Monthly_Expenses_Table[[#This Row],[Chi phí theo kế hoạch]]-Monthly_Expenses_Table[[#This Row],[Chi phí thực tế]])","v":""},{"$f":"Monthly_Expenses_Table[[#This Row],[Chi phí thực tế]]","v":0}]
[null,"Y tế","Chăm sóc cá nhân",null,null,{"$f":"IF(OR(Monthly_Expenses_Table[[#This Row],[Chi phí theo kế hoạch]]=\"\",Monthly_Expenses_Table[[#This Row],[Chi phí thực tế]]=\"\"),\"\",Monthly_Expenses_Table[[#This Row],[Chi phí theo kế hoạch]]-Monthly_Expenses_Table[[#This Row],[Chi phí thực tế]])","v":""},{"$f":"Monthly_Expenses_Table[[#This Row],[Chi phí thực tế]]","v":0}]
[null,"Đồ ăn","Vật nuôi",{"v":150,"d":"150 ₫"},{"v":75,"d":"75 ₫"},{"$f":"IF(OR(Monthly_Expenses_Table[[#This Row],[Chi phí theo kế hoạch]]=\"\",Monthly_Expenses_Table[[#This Row],[Chi phí thực tế]]=\"\"),\"\",Monthly_Expenses_Table[[#This Row],[Chi phí theo kế hoạch]]-Monthly_Expenses_Table[[#This Row],[Chi phí thực tế]])","v":{"v":75,"d":"75 ₫"}},{"$f":"Monthly_Expenses_Table[[#This Row],[Chi phí thực tế]]","v":75}]
[null,"Chăm sóc vật nuôi","Vật nuôi",{"v":20,"d":"20 ₫"},{"v":25,"d":"25 ₫"},{"$f":"IF(OR(Monthly_Expenses_Table[[#This Row],[Chi phí theo kế hoạch]]=\"\",Monthly_Expenses_Table[[#This Row],[Chi phí thực tế]]=\"\"),\"\",Monthly_Expenses_Table[[#This Row],[Chi phí theo kế hoạch]]-Monthly_Expenses_Table[[#This Row],[Chi phí thực tế]])","v":{"v":-5,"d":"-5 ₫"}},{"$f":"Monthly_Expenses_Table[[#This Row],[Chi phí thực tế]]","v":25}]
[null,"Y tế","Vật nuôi",null,null,{"$f":"IF(OR(Monthly_Expenses_Table[[#This Row],[Chi phí theo kế hoạch]]=\"\",Monthly_Expenses_Table[[#This Row],[Chi phí thực tế]]=\"\"),\"\",Monthly_Expenses_Table[[#This Row],[Chi phí theo kế hoạch]]-Monthly_Expenses_Table[[#This Row],[Chi phí thực tế]])","v":""},{"$f":"Monthly_Expenses_Table[[#This Row],[Chi phí thực tế]]","v":0}]
[null,"Đồ chơi","Vật nuôi",null,null,{"$f":"IF(OR(Monthly_Expenses_Table[[#This Row],[Chi phí theo kế hoạch]]=\"\",Monthly_Expenses_Table[[#This Row],[Chi phí thực tế]]=\"\"),\"\",Monthly_Expenses_Table[[#This Row],[Chi phí theo kế hoạch]]-Monthly_Expenses_Table[[#This Row],[Chi phí thực tế]])","v":""},{"$f":"Monthly_Expenses_Table[[#This Row],[Chi phí thực tế]]","v":0}]
[null,"Tài khoản đầu tư","Tiết kiệm",{"v":200,"d":"200 ₫"},{"v":200,"d":"200 ₫"},{"$f":"IF(OR(Monthly_Expenses_Table[[#This Row],[Chi phí theo kế hoạch]]=\"\",Monthly_Expenses_Table[[#This Row],[Chi phí thực tế]]=\"\"),\"\",Monthly_Expenses_Table[[#This Row],[Chi phí theo kế hoạch]]-Monthly_Expenses_Table[[#This Row],[Chi phí thực tế]])","v":{"v":0,"d":"0 ₫"}},{"$f":"Monthly_Expenses_Table[[#This Row],[Chi phí thực tế]]","v":200}]
[null,"Tài khoản hưu trí","Tiết kiệm",null,null,{"$f":"IF(OR(Monthly_Expenses_Table[[#This Row],[Chi phí theo kế hoạch]]=\"\",Monthly_Expenses_Table[[#This Row],[Chi phí thực tế]]=\"\"),\"\",Monthly_Expenses_Table[[#This Row],[Chi phí theo kế hoạch]]-Monthly_Expenses_Table[[#This Row],[Chi phí thực tế]])","v":""},{"$f":"Monthly_Expenses_Table[[#This Row],[Chi phí thực tế]]","v":0}]
[null,"Liên bang","Thuế",{"v":300,"d":"300 ₫"},{"v":300,"d":"300 ₫"},{"$f":"IF(OR(Monthly_Expenses_Table[[#This Row],[Chi phí theo kế hoạch]]=\"\",Monthly_Expenses_Table[[#This Row],[Chi phí thực tế]]=\"\"),\"\",Monthly_Expenses_Table[[#This Row],[Chi phí theo kế hoạch]]-Monthly_Expenses_Table[[#This Row],[Chi phí thực tế]])","v":{"v":0,"d":"0 ₫"}},{"$f":"Monthly_Expenses_Table[[#This Row],[Chi phí thực tế]]","v":300}]
[null,"Địa phương","Thuế",null,null,{"$f":"IF(OR(Monthly_Expenses_Table[[#This Row],[Chi phí theo kế hoạch]]=\"\",Monthly_Expenses_Table[[#This Row],[Chi phí thực tế]]=\"\"),\"\",Monthly_Expenses_Table[[#This Row],[Chi phí theo kế hoạch]]-Monthly_Expenses_Table[[#This Row],[Chi phí thực tế]])","v":""},{"$f":"Monthly_Expenses_Table[[#This Row],[Chi phí thực tế]]","v":0}]
[null,"Tiểu bang","Thuế",null,null,{"$f":"IF(OR(Monthly_Expenses_Table[[#This Row],[Chi phí theo kế hoạch]]=\"\",Monthly_Expenses_Table[[#This Row],[Chi phí thực tế]]=\"\"),\"\",Monthly_Expenses_Table[[#This Row],[Chi phí theo kế hoạch]]-Monthly_Expenses_Table[[#This Row],[Chi phí thực tế]])","v":""},{"$f":"Monthly_Expenses_Table[[#This Row],[Chi phí thực tế]]","v":0}]
[null,"Tiền đi xe buýt/taxi","Đi lại",{"v":100,"d":"100 ₫"},{"v":150,"d":"150 ₫"},{"$f":"IF(OR(Monthly_Expenses_Table[[#This Row],[Chi phí theo kế hoạch]]=\"\",Monthly_Expenses_Table[[#This Row],[Chi phí thực tế]]=\"\"),\"\",Monthly_Expenses_Table[[#This Row],[Chi phí theo kế hoạch]]-Monthly_Expenses_Table[[#This Row],[Chi phí thực tế]])","v":{"v":-50,"d":"-50 ₫"}},{"$f":"Monthly_Expenses_Table[[#This Row],[Chi phí thực tế]]","v":150}]
[null,"Nhiên liệu","Đi lại",{"v":450,"d":"450 ₫"},{"v":400,"d":"400 ₫"},{"$f":"IF(OR(Monthly_Expenses_Table[[#This Row],[Chi phí theo kế hoạch]]=\"\",Monthly_Expenses_Table[[#This Row],[Chi phí thực tế]]=\"\"),\"\",Monthly_Expenses_Table[[#This Row],[Chi phí theo kế hoạch]]-Monthly_Expenses_Table[[#This Row],[Chi phí thực tế]])","v":{"v":50,"d":"50 ₫"}},{"$f":"Monthly_Expenses_Table[[#This Row],[Chi phí thực tế]]","v":400}]
[null,"Bảo hiểm","Đi lại",{"v":300,"d":"300 ₫"},{"v":300,"d":"300 ₫"},{"$f":"IF(OR(Monthly_Expenses_Table[[#This Row],[Chi phí theo kế hoạch]]=\"\",Monthly_Expenses_Table[[#This Row],[Chi phí thực tế]]=\"\"),\"\",Monthly_Expenses_Table[[#This Row],[Chi phí theo kế hoạch]]-Monthly_Expenses_Table[[#This Row],[Chi phí thực tế]])","v":{"v":0,"d":"0 ₫"}},{"$f":"Monthly_Expenses_Table[[#This Row],[Chi phí thực tế]]","v":300}]
[null,"Cấp phép ","Đi lại",{"v":25,"d":"25 ₫"},{"v":25,"d":"25 ₫"},{"$f":"IF(OR(Monthly_Expenses_Table[[#This Row],[Chi phí theo kế hoạch]]=\"\",Monthly_Expenses_Table[[#This Row],[Chi phí thực tế]]=\"\"),\"\",Monthly_Expenses_Table[[#This Row],[Chi phí theo kế hoạch]]-Monthly_Expenses_Table[[#This Row],[Chi phí thực tế]])","v":{"v":0,"d":"0 ₫"}},{"$f":"Monthly_Expenses_Table[[#This Row],[Chi phí thực tế]]","v":25}]
[null,"Bảo trì","Đi lại",{"v":100,"d":"100 ₫"},{"v":50,"d":"50 ₫"},{"$f":"IF(OR(Monthly_Expenses_Table[[#This Row],[Chi phí theo kế hoạch]]=\"\",Monthly_Expenses_Table[[#This Row],[Chi phí thực tế]]=\"\"),\"\",Monthly_Expenses_Table[[#This Row],[Chi phí theo kế hoạch]]-Monthly_Expenses_Table[[#This Row],[Chi phí thực tế]])","v":{"v":50,"d":"50 ₫"}},{"$f":"Monthly_Expenses_Table[[#This Row],[Chi phí thực tế]]","v":50}]
[null,"Phí đỗ xe","Đi lại",null,null,{"$f":"IF(OR(Monthly_Expenses_Table[[#This Row],[Chi phí theo kế hoạch]]=\"\",Monthly_Expenses_Table[[#This Row],[Chi phí thực tế]]=\"\"),\"\",Monthly_Expenses_Table[[#This Row],[Chi phí theo kế hoạch]]-Monthly_Expenses_Table[[#This Row],[Chi phí thực tế]])","v":""},{"$f":"Monthly_Expenses_Table[[#This Row],[Chi phí thực tế]]","v":0}]
[null,"Thanh toán phương tiện đi lại","Đi lại",{"v":450,"d":"450 ₫"},{"v":450,"d":"450 ₫"},{"$f":"IF(OR(Monthly_Expenses_Table[[#This Row],[Chi phí theo kế hoạch]]=\"\",Monthly_Expenses_Table[[#This Row],[Chi phí thực tế]]=\"\"),\"\",Monthly_Expenses_Table[[#This Row],[Chi phí theo kế hoạch]]-Monthly_Expenses_Table[[#This Row],[Chi phí thực tế]])","v":{"v":0,"d":"0 ₫"}},{"$f":"Monthly_Expenses_Table[[#This Row],[Chi phí thực tế]]","v":450}]

{"sheet":"Dữ liệu bổ sung","index":3,"n_rows":17,"n_cols":6,"rows_kept":17}
[{"$nulls":5}," "]
[null,"Biểu đồ ngân sách PivotTable",null,null,"Danh sách danh mục"]
[]
[null,"Danh mục","Chi phí",null,"Để thêm danh mục, hãy nhập dưới đây"]
[null,"Vật nuôi",{"v":100,"d":"100 ₫"},null,"Con cái"]
[null,"Quà tặng và khoản từ thiện",{"v":125,"d":"125 ₫"},null,"Giải trí"]
[null,"Con cái",{"v":140,"d":"140 ₫"},null,"Đồ ăn"]
[null,"Chăm sóc cá nhân",{"v":140,"d":"140 ₫"},null,"Quà tặng và khoản từ thiện"]
[null,"Khoản vay",{"v":200,"d":"200 ₫"},null,"Nhà ở"]
[null,"Tiết kiệm",{"v":200,"d":"200 ₫"},null,"Bảo hiểm"]
[null,"Thuế",{"v":300,"d":"300 ₫"},null,"Khoản vay"]
[null,"Giải trí",{"v":358,"d":"358 ₫"},null,"Chăm sóc cá nhân"]
[null,"Bảo hiểm",{"v":900,"d":"900 ₫"},null,"Vật nuôi"]
[null,"Đồ ăn",{"v":1320,"d":"1,320 ₫"},null,"Tiết kiệm"]
[null,"Đi lại",{"v":1375,"d":"1,375 ₫"},null,"Thuế"]
[null,"Nhà ở",{"v":2702,"d":"2,702 ₫"},null,"Đi lại"]
[null,"Tổng Cuối",{"v":7860,"d":"7,860 ₫"}]